fUST/lending_fUST_20250103
["ID","MTS","AMOUNT","RATE_DAILY","PERIOD"]
[347469869,1735843839609,-500.0,0.00019451,2]
[347469870,1735843839618,-500.0,0.00019451,2]
[347469871,1735843839627,-500.0,0.00019451,2]
[347469872,1735843839637,-475.87515759,0.00019451,2]
[347469873,1735843839646,-500.0,0.00019451,2]
[347469874,1735843839656,-500.0,0.00019451,2]
[347469875,1735843839666,-550.0,0.00019451,2]
[347469876,1735843839677,-500.0,0.00019451,2]
[347469877,1735843839686,-500.0,0.00019451,2]
[347469878,1735843839697,-500.0,0.00019451,2]
[347469879,1735843839706,-500.0,0.00019451,2]
[347469880,1735843839715,-500.0,0.00019451,2]
[347469881,1735843839724,-500.0,0.00019451,2]
[347469882,1735843839734,-500.0,0.00019451,2]
[347469883,1735843839743,-500.0,0.00019451,2]
[347469884,1735843839752,-500.0,0.00019451,2]
[347469885,1735843839762,-500.0,0.00019451,2]
[347469886,1735843839771,-500.0,0.00019451,2]
[347469887,1735843839781,-500.0,0.00019451,2]
[347469888,1735843839791,-500.0,0.00019451,2]
[347469889,1735843839800,-500.0,0.00019451,2]
[347469890,1735843839810,-500.0,0.00019451,2]
[347469891,1735843839819,-862.13,0.00019452,3]
[347469892,1735843839828,-189.91495306,0.00019452,3]
[347469893,1735843839838,-500.0,0.00019452,3]
[347469894,1735843839848,-500.0,0.00019452,3]
[347469895,1735843839857,-516.33,0.00019452,3]
[347469896,1735843839866,-500.0,0.00019452,3]
[347469897,1735843839876,-500.0,0.00019452,3]
[347469898,1735843839886,-788.08,0.00019452,3]
[347469899,1735843839896,-500.0,0.00019452,3]
[347469900,1735843839905,-500.0,0.00019452,3]
[347469901,1735843839915,-500.0,0.00019452,3]
[347469902,1735843839924,-500.0,0.00019452,3]
[347469903,1735843839934,-500.0,0.00019452,3]
[347469904,1735843839943,-500.0,0.00019452,3]
[347469905,1735843839952,-320.83,0.00019452,3]
[347469906,1735843839963,-500.0,0.00019452,3]
[347469907,1735843839972,-500.0,0.00019452,3]
[347469908,1735843839981,-500.0,0.00019452,3]
[347469909,1735843839991,-500.0,0.00019452,3]
[347469910,1735843840001,-500.0,0.00019452,3]
[347469911,1735843840011,-500.0,0.00019452,3]
[347469912,1735843840020,-500.0,0.00019452,2]
[347469913,1735843840030,-500.0,0.00019452,3]
[347469914,1735843840040,-3224.93,0.00019452,3]
[347469915,1735843840050,-500.0,0.00019452,3]
[347469916,1735843840059,-500.0,0.00019452,3]
[347469917,1735843840069,-500.0,0.00019452,3]
[347469918,1735843840078,-500.0,0.00019452,3]
[347469919,1735843840088,-500.0,0.00019452,3]
[347469921,1735843840097,-500.0,0.00019452,3]
[347469922,1735843840107,-500.0,0.00019452,3]
[347469923,1735843840116,-500.0,0.00019452,3]
[347469924,1735843840126,-500.0,0.00019452,3]
[347469925,1735843840135,-500.0,0.00019452,3]
[347469926,1735843840144,-500.0,0.00019452,3]
[347469927,1735843840154,-500.0,0.00019452,3]
[347469928,1735843840163,-580.96358821,0.00019452,3]
[347469929,1735843840173,-500.0,0.00019452,3]
[347469930,1735843840182,-319.29692767,0.00019452,3]
[347469931,1735843840192,-17731.21,0.00019452,3]
[347469932,1735843840202,-500.0,0.00019452,3]
[347469933,1735843840211,-500.0,0.00019452,3]
[347469934,1735843840221,-500.0,0.00019452,3]
[347469935,1735843840231,-470.96141222,0.00019452,3]
[347469936,1735843840241,-545.07,0.00019452,3]
[347469937,1735843840251,-4037.59,0.00019452,3]
[347469938,1735843840261,-2397.33,0.00019452,3]
[347469939,1735843840271,-1961.5,0.00019452,3]
[347469940,1735843840281,-500.0,0.00019452,3]
[347469941,1735843840290,-655.96,0.00019452,3]
[347469942,1735843840300,-802.92,0.00019452,3]
[347469943,1735843840310,-502.37,0.00019452,3]
[347469944,1735843840319,-500.0,0.00019452,3]
[347469945,1735843840329,-652.41,0.00019452,3]
[347469946,1735843840338,-538.20349741,0.00019452,3]
[347469948,1735843840348,-731.35,0.00019452,2]
[347469950,1735843840357,-500.0,0.00019452,3]
[347469951,1735843840366,-500.0,0.00019452,3]
[347469952,1735843840376,-500.0,0.00019452,3]
[347469953,1735843840385,-1144.51,0.00019452,3]
[347469954,1735843840397,-468.03186624,0.00019452,3]
[347469955,1735843840407,-704.63,0.00019452,3]
[347469956,1735843840417,-649.76,0.00019452,3]
[347469957,1735843840427,-500.0,0.00019452,3]
[347469958,1735843840436,-533.67,0.00019452,3]
[347469959,1735843840446,-523.25,0.00019452,3]
[347469960,1735843840458,-1494.21,0.00019452,3]
[347469962,1735843840467,-648.19,0.00019452,3]
[347469963,1735843840477,-500.0,0.00019452,3]
[347469964,1735843840486,-500.0,0.00019452,3]
[347469965,1735843840495,-419.43,0.00019452,3]
[347469966,1735843840505,-500.0,0.00019452,3]
[347469967,1735843840514,-500.0,0.00019452,3]
[347469968,1735843840524,-4451.29,0.00019452,3]
[347469969,1735843840537,-2076.31,0.00019452,3]
[347469970,1735843840546,-500.0,0.00019452,3]
[347469971,1735843840556,-1168.22,0.00019452,3]
[347469972,1735843840566,-500.0,0.00019452,3]
[347469973,1735843840575,-500.0,0.00019452,3]
[347469974,1735843840583,-1500.25,0.00019452,3]
[347469975,1735843840592,-500.0,0.00019452,3]
[347469976,1735843840604,-532.53,0.00019452,3]
[347469977,1735843840614,-500.0,0.00019452,3]
[347469978,1735843840624,-500.0,0.00019452,3]
[347469980,1735843840634,-535.55,0.00019452,3]
[347469982,1735843840643,-500.0,0.00019452,3]
[347469983,1735843840652,-500.0,0.00019452,3]
[347469984,1735843840662,-500.0,0.00019473,2]
[347469985,1735843840674,-500.0,0.00019473,2]
[347469986,1735843840683,-416.05140284,0.00019564,2]
[347469987,1735843840692,-338.00944409,0.00019625,2]
[347469988,1735843840702,-12237.80817479,0.00019724,2]
[347469989,1735843840712,-862.13,0.00019726,3]
[347469990,1735843840722,-500.0,0.00019726,3]
[347469991,1735843840732,-500.0,0.00019726,3]
[347469992,1735843840740,-516.33,0.00019726,3]
[347469993,1735843840749,-500.0,0.00019726,3]
[347469994,1735843840759,-500.0,0.00019726,3]
[347469995,1735843840770,-788.08,0.00019726,3]
[347469996,1735843840779,-500.0,0.00019726,3]
[347469997,1735843840789,-500.0,0.00019726,3]
[347469998,1735843840798,-500.0,0.00019726,3]
[347469999,1735843840807,-500.0,0.00019726,3]
[347470001,1735843840816,-463.40799175,0.00019726,3]
[347470002,1735843840827,-500.0,0.00019726,3]
[347470003,1735843840836,-500.0,0.00019726,3]
[347470004,1735843840845,-210.17418463,0.00019726,3]
[347470005,1735843840855,-500.8970968,0.00019726,3]
[347470006,1735843840865,-500.0,0.00019726,3]
[347470007,1735843840874,-500.0,0.00019726,3]
[347470008,1735843840884,-421.68,0.00019726,3]
[347470009,1735843840893,-519.44,0.00019726,2]
[347470010,1735843840903,-500.0,0.00019726,3]
[347470011,1735843840912,-3224.93,0.00019726,3]
[347470012,1735843840922,-500.0,0.00019726,3]
[347470013,1735843840931,-500.0,0.00019726,3]
[347470014,1735843840941,-500.0,0.00019726,3]
[347470015,1735843840950,-500.0,0.00019726,3]
[347470016,1735843840959,-500.0,0.00019726,3]
[347470017,1735843840968,-500.0,0.00019726,3]
[347470018,1735843840977,-500.0,0.00019726,3]
[347470019,1735843840987,-500.0,0.00019726,3]
[347470020,1735843840996,-500.0,0.00019726,3]
[347470021,1735843841005,-500.0,0.00019726,3]
[347470022,1735843841014,-500.0,0.00019726,3]
[347470023,1735843841023,-500.0,0.00019726,3]
[347470024,1735843841033,-17731.21,0.00019726,3]
[347470025,1735843841042,-500.0,0.00019726,3]
[347470026,1735843841051,-500.0,0.00019726,3]
[347470027,1735843841061,-545.07,0.00019726,3]
[347470028,1735843841070,-4037.59,0.00019726,3]
[347470029,1735843841080,-2397.33,0.00019726,3]
[347470030,1735843841089,-1961.5,0.00019726,3]
[347470031,1735843841098,-575.65517321,0.00019726,3]
[347470032,1735843841108,-655.96,0.00019726,3]
[347470033,1735843841117,-802.92,0.00019726,3]
[347470034,1735843841126,-502.37,0.00019726,3]
[347470035,1735843841136,-500.0,0.00019726,3]
[347470036,1735843841145,-652.41,0.00019726,3]
[347470037,1735843841155,-731.35,0.00019726,2]
[347470038,1735843841165,-500.0,0.00019726,3]
[347470039,1735843841175,-500.0,0.00019726,3]
[347470040,1735843841184,-1144.51,0.00019726,3]
[347470041,1735843841193,-704.63,0.00019726,3]
[347470042,1735843841202,-500.0,0.00019726,3]
[347470043,1735843841211,-523.25,0.00019726,3]
[347470044,1735843841221,-1494.21,0.00019726,3]
[347470045,1735843841230,-648.19,0.00019726,3]
[347470046,1735843841239,-500.0,0.00019726,3]
[347470047,1735843841248,-500.0,0.00019726,3]
[347470048,1735843841257,-500.0,0.00019726,3]
[347470049,1735843841267,-500.0,0.00019726,3]
[347470050,1735843841276,-4451.29,0.00019726,3]
[347470051,1735843841285,-2076.31,0.00019726,3]
[347470052,1735843841294,-204.72,0.00019726,3]
[347470053,1735843841303,-1168.22,0.00019726,3]
[347470054,1735843841312,-500.0,0.00019726,3]
[347470055,1735843841321,-500.0,0.00019726,3]
[347470056,1735843841330,-1500.25,0.00019726,3]
[347470057,1735843841436,-500.0,0.00019726,3]
[347470058,1735843841445,-532.53,0.00019726,3]
[347470059,1735843841455,-500.0,0.00019726,3]
[347470060,1735843841464,-500.0,0.00019726,3]
[347470061,1735843841473,-12237.80817479,0.00019726,2]
[347470062,1735843841482,-535.55,0.00019726,3]
[347470063,1735843841491,-500.0,0.00019726,3]
[347470064,1735843841500,-153.6137553,0.00019762,2]
[347470065,1735843841509,-214.4778337,0.00019762,2]
[347470066,1735843841518,-214.4778337,0.00019762,2]
[347470067,1735843841530,-153.6137553,0.00019762,2]
[347470068,1735843841539,-214.4778337,0.00019764,2]
[347470069,1735843841548,-214.4778337,0.00019764,2]
[347470070,1735843841557,-214.4778337,0.00019764,2]
[347470071,1735843841567,-214.4778337,0.000199,2]
[347470072,1735843841576,-153.6137553,0.000199,2]
[347470073,1735843841585,-352.6747562,0.000199,2]
[347470074,1735843841595,-352.6747562,0.000199,2]
[347470075,1735843841605,-153.6137553,0.000199,2]
[347470076,1735843841615,-214.4778337,0.000199,2]
[347470077,1735843841623,-11562.31259782,0.000199,2]
[347470078,1735843841633,-338.00944405,0.00019919,2]
[347470079,1735843841642,-465.6948422,0.00019942,2]
[347470080,1735843841652,-7448.0021065,0.0002,2]
[347470081,1735843841661,-352.6747562,0.0002,2]
[347470082,1735843841671,-862.13,0.0002,3]
[347470083,1735843841680,-500.0,0.0002,3]
[347470084,1735843841690,-500.0,0.0002,3]
[347470085,1735843841699,-516.33,0.0002,3]
[347470086,1735843841708,-500.0,0.0002,3]
[347470087,1735843841717,-384.73511121,0.0002,3]
[347470088,1735843841726,-788.08,0.0002,3]
[347470089,1735843841735,-500.0,0.0002,3]
[347470090,1735843841744,-500.0,0.0002,3]
[347470091,1735843841754,-500.0,0.0002,3]
[347470092,1735843841763,-500.0,0.0002,3]
[347470093,1735843841772,-500.0,0.0002,3]
[347470094,1735843841781,-500.0,0.0002,3]
[347470095,1735843841790,-500.0,0.0002,3]
[347470096,1735843841799,-500.0,0.0002,3]
[347470097,1735843841809,-500.0,0.0002,3]
[347470098,1735843841818,-3224.93,0.0002,3]
[347470099,1735843841827,-500.0,0.0002,3]
[347470100,1735843841836,-429.03,0.0002,3]
[347470101,1735843841846,-500.0,0.0002,3]
[347470102,1735843841855,-500.0,0.0002,3]
[347470103,1735843841864,-500.0,0.0002,3]
[347470104,1735843841873,-500.0,0.0002,3]
[347470105,1735843841883,-500.0,0.0002,3]
[347470106,1735843841893,-500.0,0.0002,3]
[347470107,1735843841904,-500.0,0.0002,3]
[347470108,1735843841914,-500.0,0.0002,3]
[347470109,1735843841925,-500.0,0.0002,3]
[347470110,1735843841935,-500.0,0.0002,3]
[347470111,1735843841944,-17731.21,0.0002,3]
[347470112,1735843841954,-500.0,0.0002,3]
[347470113,1735843841963,-500.0,0.0002,3]
[347470114,1735843841973,-545.07,0.0002,3]
[347470115,1735843841983,-4037.59,0.0002,3]
[347470116,1735843841993,-2397.33,0.0002,3]
[347470117,1735843842002,-1961.5,0.0002,3]
[347470118,1735843842012,-655.96,0.0002,3]
[347470119,1735843842022,-802.92,0.0002,3]
[347470120,1735843842034,-502.37,0.0002,3]
[347470121,1735843842044,-500.0,0.0002,3]
[347470122,1735843842054,-652.41,0.0002,3]
[347470123,1735843842064,-731.35,0.0002,2]
[347470124,1735843842073,-500.0,0.0002,3]
[347470125,1735843842082,-500.0,0.0002,3]
[347470126,1735843842091,-1144.51,0.0002,3]
[347470127,1735843842102,-704.63,0.0002,3]
[347470128,1735843842111,-500.0,0.0002,3]
[347470129,1735843842121,-523.25,0.0002,3]
[347470130,1735843842132,-1494.21,0.0002,3]
[347470131,1735843842143,-648.19,0.0002,3]
[347470132,1735843842153,-500.0,0.0002,3]
[347470133,1735843842162,-500.0,0.0002,3]
[347470134,1735843842172,-500.0,0.0002,3]
[347470135,1735843842181,-500.0,0.0002,3]
[347470136,1735843842190,-4451.29,0.0002,3]
[347470137,1735843842199,-2076.31,0.0002,3]
[347470138,1735843842209,-1168.22,0.0002,3]
[347470139,1735843842218,-500.0,0.0002,3]
[347470140,1735843842230,-500.0,0.0002,3]
[347470141,1735843842240,-1500.25,0.0002,3]
[347470142,1735843842251,-500.0,0.0002,3]
[347470143,1735843842260,-532.53,0.0002,3]
[347470144,1735843842269,-500.0,0.0002,3]
[347470145,1735843842279,-500.0,0.0002,3]
[347470146,1735843842291,-535.55,0.0002,3]
[347470147,1735843842302,-1073.34628191,0.00020021,2]
[347470148,1735843842312,-416.05140284,0.00020049,2]
[347470149,1735843842321,-11562.31259782,0.00020058,2]
[347470150,1735843842330,-153.6137553,0.00020137,2]
[347470151,1735843842340,-214.4778337,0.00020137,2]
[347470152,1735843842349,-338.00944405,0.00020213,2]
[347470153,1735843842359,-11562.31259782,0.00020216,2]
[347470154,1735843842371,-862.13,0.00020273,3]
[347470155,1735843842380,-166.56,0.00020273,3]
[347470156,1735843842390,-228.12,0.00020273,3]
[347470157,1735843842401,-516.33,0.00020273,3]
[347470158,1735843842412,-500.0,0.00020273,3]
[347470159,1735843842425,-788.08,0.00020273,3]
[347470160,1735843842435,-500.0,0.00020273,3]
[347470161,1735843842445,-500.0,0.00020273,3]
[347470162,1735843842454,-500.0,0.00020273,3]
[347470163,1735843842463,-544.83,0.00020273,3]
[347470164,1735843842472,-500.0,0.00020273,3]
[347470165,1735843842481,-296.32,0.00020273,3]
[347470166,1735843842491,-500.0,0.00020273,3]
[347470167,1735843842502,-500.0,0.00020273,3]
[347470168,1735843842513,-500.0,0.00020273,3]
[347470169,1735843842523,-3224.93,0.00020273,3]
[347470170,1735843842535,-500.0,0.00020273,3]
[347470171,1735843842545,-500.0,0.00020273,3]
[347470172,1735843842555,-500.0,0.00020273,3]
[347470173,1735843842567,-451.28,0.00020273,3]
[347470174,1735843842579,-500.0,0.00020273,3]
[347470175,1735843842588,-500.0,0.00020273,3]
[347470176,1735843842599,-500.0,0.00020273,3]
[347470177,1735843842609,-500.0,0.00020273,3]
[347470178,1735843842618,-500.0,0.00020273,3]
[347470179,1735843842628,-500.0,0.00020273,3]
[347470180,1735843842640,-17731.21,0.00020273,3]
[347470181,1735843842649,-500.0,0.00020273,3]
[347470182,1735843842658,-500.0,0.00020273,3]
[347470183,1735843842669,-545.07,0.00020273,3]
[347470184,1735843842679,-4037.59,0.00020273,3]
[347470185,1735843842688,-2397.33,0.00020273,3]
[347470186,1735843842697,-1961.5,0.00020273,3]
[347470187,1735843842707,-655.96,0.00020273,3]
[347470188,1735843842719,-802.92,0.00020273,3]
[347470189,1735843842730,-502.37,0.00020273,3]
[347470190,1735843842739,-461.46,0.00020273,3]
[347470191,1735843842748,-652.41,0.00020273,3]
[347470192,1735843842758,-731.35,0.00020273,2]
[347470193,1735843842768,-499.0,0.00020273,2]
[347470194,1735843842777,-500.0,0.00020273,3]
[347470195,1735843842786,-500.0,0.00020273,3]
[347470196,1735843842795,-1144.51,0.00020273,3]
[347470197,1735843842805,-704.63,0.00020273,3]
[347470198,1735843842815,-500.0,0.00020273,3]
[347470199,1735843842824,-523.25,0.00020273,3]
[347470200,1735843842834,-1494.21,0.00020273,3]
[347470201,1735843842843,-648.19,0.00020273,3]
[347470202,1735843842852,-424.8,0.00020273,3]
[347470203,1735843842862,-500.0,0.00020273,3]
[347470204,1735843842871,-500.0,0.00020273,3]
[347470205,1735843842880,-500.0,0.00020273,3]
[347470206,1735843842889,-4451.29,0.00020273,3]
[347470207,1735843842899,-2076.31,0.00020273,3]
[347470208,1735843842909,-1168.22,0.00020273,3]
[347470209,1735843842919,-500.0,0.00020273,3]
[347470210,1735843842929,-500.0,0.00020273,3]
[347470211,1735843842939,-1500.25,0.00020273,3]
[347470212,1735843842949,-500.0,0.00020273,3]
[347470213,1735843842958,-532.53,0.00020273,3]
[347470214,1735843842968,-500.0,0.00020273,3]
[347470215,1735843842978,-500.0,0.00020273,3]
[347470216,1735843842987,-535.55,0.00020273,3]
[347470217,1735843842996,-11562.31259782,0.00020374,2]
[347470218,1735843843006,-249.377129,0.00020447,2]
[347470219,1735843843015,-500.0,0.00020473,2]
[347470220,1735843843025,-500.51599442,0.00020473,2]
[347470221,1735843843034,-172792.68879458,0.000205,2]
[347470222,1735843843044,-151.0,0.000205,4]
[347470223,1735843843054,-8563.98,0.000205,2]
[347470224,1735843843063,-16433.82,0.000205,2]
[347470225,1735843843072,-4927.17,0.000205,2]
[347470226,1735843843083,-338.00944405,0.00020506,2]
[347470227,1735843843092,-180.396715,0.00020521,2]
[347470228,1735843843102,-11562.31259782,0.00020532,2]
[347470229,1735843843112,-416.05140284,0.00020535,2]
[347470230,1735843843121,-6777.14284078,0.00020547,2]
[347470231,1735843843131,-67442.39405637,0.00020547,2]
[347470232,1735843843140,-862.13,0.00020547,3]
[347470233,1735843843150,-516.33,0.00020547,3]
[347470234,1735843843159,-500.0,0.00020547,3]
[347470235,1735843843168,-788.08,0.00020547,3]
[347470236,1735843843179,-500.0,0.00020547,3]
[347470237,1735843843188,-500.0,0.00020547,3]
[347470238,1735843843198,-500.0,0.00020547,3]
[347470239,1735843843207,-500.0,0.00020547,3]
[347470240,1735843843217,-312.71,0.00020547,3]
[347470241,1735843843227,-500.0,0.00020547,3]
[347470242,1735843843237,-500.0,0.00020547,3]
[347470243,1735843843247,-3224.93,0.00020547,3]
[347470244,1735843843257,-230.64397185,0.00020547,3]
[347470245,1735843843266,-500.0,0.00020547,3]
[347470246,1735843843275,-500.0,0.00020547,3]
[347470247,1735843843284,-500.0,0.00020547,3]
[347470249,1735843843293,-500.0,0.00020547,3]
[347470251,1735843843302,-500.0,0.00020547,3]
[347470253,1735843843311,-500.0,0.00020547,3]
[347470255,1735843843320,-500.0,0.00020547,3]
[347470258,1735843843329,-500.0,0.00020547,3]
[347470260,1735843843338,-17731.21,0.00020547,3]
[347470262,1735843843348,-500.0,0.00020547,3]
[347470264,1735843843357,-500.0,0.00020547,3]
[347470266,1735843843367,-545.07,0.00020547,3]
[347470267,1735843843376,-4037.59,0.00020547,3]
[347470268,1735843843387,-2397.33,0.00020547,3]
[347470269,1735843843398,-1961.5,0.00020547,3]
[347470270,1735843843407,-655.96,0.00020547,3]
[347470271,1735843843416,-802.92,0.00020547,3]
[347470272,1735843843428,-502.37,0.00020547,3]
[347470273,1735843843437,-652.41,0.00020547,3]
[347470275,1735843843448,-731.35,0.00020547,2]
[347470276,1735843843457,-500.0,0.00020547,3]
[347470277,1735843843467,-500.0,0.00020547,3]
[347470278,1735843843476,-1144.51,0.00020547,3]
[347470279,1735843843485,-704.63,0.00020547,3]
[347470280,1735843843495,-500.0,0.00020547,3]
[347470281,1735843843504,-523.25,0.00020547,3]
[347470282,1735843843513,-1494.21,0.00020547,3]
[347470283,1735843843523,-648.19,0.00020547,3]
[347470284,1735843843536,-500.0,0.00020547,3]
[347470285,1735843843545,-339.34,0.00020547,3]
[347470286,1735843843554,-500.0,0.00020547,3]
[347470287,1735843843564,-4451.29,0.00020547,3]
[347470288,1735843843575,-2076.31,0.00020547,3]
[347470290,1735843843584,-1168.22,0.00020547,3]
[347470292,1735843843593,-451.7,0.00020547,3]
[347470293,1735843843603,-439.75700767,0.00020547,3]
[347470294,1735843843612,-1500.25,0.00020547,3]
[347470295,1735843843622,-509.57,0.00020547,3]
[347470296,1735843843632,-532.53,0.00020547,3]
[347470298,1735843843641,-500.0,0.00020547,3]
[347470299,1735843843650,-151.0,0.00020547,2]
[347470301,1735843843659,-500.0,0.00020547,3]
[347470303,1735843843669,-535.55,0.00020547,3]
[347470304,1735843843679,-153.0,0.00020555,2]
[347470305,1735843843688,-153.0,0.00020555,2]
[347470306,1735843843697,-153.0,0.00020555,2]
[347470307,1735843843707,-153.0,0.00020555,2]
[347470308,1735843843805,-153.0,0.00020555,2]
[347470309,1735843843827,-153.0,0.00020555,2]
[347470310,1735843843837,-153.0,0.00020555,2]
[347470311,1735843843847,-153.0,0.00020555,2]
[347470312,1735843843856,-3153.48437821,0.0002061,2]
[347470313,1735843843866,-11562.31259782,0.00020689,2]
[347470314,1735843843875,-151.0,0.000207,4]
[347470315,1735843843885,-180.396715,0.00020712,2]
[347470316,1735843843895,-25722.71962112,0.0002079,2]
[347470317,1735843843904,-151.0,0.000208,3]
[347470318,1735843843913,-338.00944405,0.000208,2]
[347470319,1735843843924,-862.13,0.00020821,3]
[347470320,1735843843934,-151.0,0.00020821,2]
[347470321,1735843843943,-345.712151,0.00020821,2]
[347470322,1735843843953,-345.712151,0.00020821,2]
[347470323,1735843843963,-516.33,0.00020821,3]
[347470324,1735843843972,-151.0,0.00020821,2]
[347470325,1735843843982,-151.0,0.00020821,2]
[347470326,1735843843992,-500.0,0.00020821,3]
[347470327,1735843844001,-788.08,0.00020821,3]
[347470328,1735843844011,-500.0,0.00020821,3]
[347470329,1735843844020,-500.0,0.00020821,3]
[347470330,1735843844029,-500.0,0.00020821,3]
[347470331,1735843844039,-491.556627,0.00020821,2]
[347470332,1735843844049,-500.0,0.00020821,3]
[347470333,1735843844059,-491.556627,0.00020821,2]
[347470334,1735843844069,-151.0,0.00020821,2]
[347470335,1735843844078,-361.738629,0.00020821,2]
[347470336,1735843844087,-361.738629,0.00020821,2]
[347470337,1735843844097,-151.0,0.00020821,2]
[347470338,1735843844107,-500.0,0.00020821,3]
[347470339,1735843844116,-151.0,0.00020821,2]
[347470340,1735843844126,-159.7,0.00020821,3]
[347470341,1735843844136,-3224.93,0.00020821,3]
[347470342,1735843844145,-4921.59023,0.00020821,2]
[347470343,1735843844155,-4921.59023,0.00020821,2]
[347470344,1735843844164,-500.0,0.00020821,3]
[347470345,1735843844174,-1000.543658,0.00020821,2]
[347470346,1735843844184,-1000.543658,0.00020821,2]
[347470347,1735843844194,-500.0,0.00020821,3]
[347470348,1735843844203,-500.0,0.00020821,3]
[347470349,1735843844212,-500.0,0.00020821,3]
[347470350,1735843844222,-500.0,0.00020821,3]
[347470351,1735843844231,-500.0,0.00020821,3]
[347470352,1735843844241,-500.0,0.00020821,3]
[347470353,1735843844250,-633.57463747,0.00020821,3]
[347470354,1735843844259,-7906.4328815,0.00020821,3]
[347470371,1735843887408,1017.0,0.00025,120]
[347470376,1735843967141,244.439416,0.00013973,2]
[347470394,1735844760169,150.51,0.00013699,2]
[347470395,1735844760495,150.52206473,0.00013699,2]
[347470434,1735845032850,-16493.87324135,0.00014987,2]
[347470436,1735845032860,-16493.87324135,0.00014988,2]
[347470438,1735845032870,-11962.06299576,0.00014998,2]
[347470440,1735845032883,-4531.81024559,0.00014998,2]
[347470442,1735845032895,-185.9528876,0.00015925,2]
[347470444,1735845032904,-185.9528876,0.00016086,2]
[347470446,1735845032914,-159.89239171,0.00016985,2]
[347470449,1735845032923,-1000.0,0.00017,17]
[347470452,1735845032934,-1000.0,0.00017,2]
[347470454,1735845032943,-200.581027,0.00017108,2]
[347470457,1735845032953,-647.0444198,0.00017108,2]
[347470461,1735845032963,-185.9528876,0.00017257,2]
[347470464,1735845032973,-1000.0,0.00018,18]
[347470466,1735845032983,-2000.0,0.00018,3]
[347470469,1735845032992,-300.0,0.00018132,2]
[347470471,1735845033002,-6478.0,0.00018132,2]
[347470474,1735845033011,-24900.0,0.00018138,2]
[347470477,1735845033021,-763.28276648,0.000189,2]
[347470480,1735845033030,-1000.0,0.00019,19]
[347470483,1735845033040,-2000.0,0.00019,4]
[347470486,1735845033050,-152.0,0.00019073,2]
[347470489,1735845033060,-732.80797469,0.00019078,2]
[347470492,1735845033070,-32545.41385628,0.00019078,2]
[347470495,1735845033080,-5164.75756255,0.00019141,2]
[347470498,1735845033090,-500.0,0.00019173,2]
[347470501,1735845033100,-500.0,0.00019173,2]
[347470504,1735845033111,-500.0,0.00019173,2]
[347470507,1735845033121,-500.0,0.00019173,2]
[347470510,1735845033130,-500.0,0.00019173,2]
[347470513,1735845033140,-502.41149017,0.00019173,2]
[347470516,1735845033149,-500.0,0.00019173,2]
[347470519,1735845033159,-500.3380133,0.00019173,2]
[347470522,1735845033169,-500.0,0.00019173,2]